[Event "Early-Titled-Tuesday-Blitz-January-16-2024"]
[Site "Chess.com"]
[Date "2024.01.16"]
[Round "2"]
[White "AlexandraSamaganova"]
[Black "Herzog2012"]
[Result "0-1"]
[WhiteElo "2304"]
[BlackElo "2541"]
[TimeControl "180+1"]
[EndTime "8:19:22 PST"]
[Termination "Herzog2012 won by resignation"]

1. c4 {[%clk 0:03:00.9]} 1... Nf6 {[%clk 0:02:57.8]} 2. Nc3 {[%clk 0:03:00.4]}
2... e5 {[%clk 0:02:55.1]} 3. Nf3 {[%clk 0:02:59.3]} 3... Nc6 {[%clk 0:02:54.1]}
4. a3 {[%clk 0:02:53.3]} 4... d5 {[%clk 0:02:37.7]} 5. cxd5 {[%clk 0:02:50.6]}
5... Nxd5 {[%clk 0:02:38.6]} 6. Qc2 {[%clk 0:02:50.5]} 6... Be7 {[%clk
0:02:37.2]} 7. e3 {[%clk 0:02:50.4]} 7... O-O {[%clk 0:02:36.3]} 8. b4 {[%clk
0:02:43.2]} 8... a6 {[%clk 0:02:32.6]} 9. Bb2 {[%clk 0:02:42.8]} 9... Be6 {[%clk
0:02:30.8]} 10. Be2 {[%clk 0:02:38]} 10... Nxc3 {[%clk 0:02:19.7]} 11. Bxc3
{[%clk 0:02:36.8]} 11... Bd6 {[%clk 0:02:20]} 12. d4 {[%clk 0:02:35]} 12... exd4
{[%clk 0:02:13.2]} 13. Nxd4 {[%clk 0:02:34.7]} 13... Nxd4 {[%clk 0:02:13]} 14.
Bxd4 {[%clk 0:02:34.7]} 14... Bd5 {[%clk 0:02:03.8]} 15. O-O {[%clk 0:02:21.4]}
15... Qh4 {[%clk 0:01:44.3]} 16. g3 {[%clk 0:02:07.1]} 16... Qh3 {[%clk
0:01:41.8]} 17. e4 {[%clk 0:02:06.8]} 17... Bc6 {[%clk 0:01:35.4]} 18. Bf3
{[%clk 0:02:03.6]} 18... f5 {[%clk 0:01:31.5]} 19. Bg2 {[%clk 0:01:42.6]} 19...
Qxg2+ {[%clk 0:01:29.9]} 20. Kxg2 {[%clk 0:01:36.4]} 20... Bxe4+ {[%clk
0:01:30.8]} 21. Qxe4 {[%clk 0:01:36.7]} 21... fxe4 {[%clk 0:01:31.7]} 22. Rfe1
{[%clk 0:01:31.9]} 22... Rae8 {[%clk 0:01:30.9]} 23. Re2 {[%clk 0:01:27.3]}
23... Rf3 {[%clk 0:01:19.7]} 24. Be3 {[%clk 0:01:13.2]} 24... Rf5 {[%clk
0:01:17]} 25. Rd1 {[%clk 0:01:12.1]} 25... a5 {[%clk 0:01:16.1]} 26. Rd4 {[%clk
0:01:04.8]} 26... axb4 {[%clk 0:01:15.2]} 27. axb4 {[%clk 0:01:05]} 27... Kf7
{[%clk 0:00:54.9]} 28. Bd2 {[%clk 0:00:54.2]} 28... Re6 {[%clk 0:00:48.7]} 29.
Rdxe4 {[%clk 0:00:49.3]} 29... Rxe4 {[%clk 0:00:47.9]} 30. Rxe4 {[%clk
0:00:50.2]} 30... Rd5 {[%clk 0:00:47.4]} 31. Be3 {[%clk 0:00:41.5]} 31... Rd3
{[%clk 0:00:43.4]} 32. Rc4 {[%clk 0:00:35.2]} 32... b5 {[%clk 0:00:40.5]} 33.
Rh4 {[%clk 0:00:14.2]} 33... h6 {[%clk 0:00:39.3]} 34. Kf1 {[%clk 0:00:08.1]}
34... Rc3 {[%clk 0:00:36.7]} 35. Bd2 {[%clk 0:00:05.4]} 35... Rc2 {[%clk
0:00:27.5]} 36. Ke1 {[%clk 0:00:04.6]} 36... Ke6 {[%clk 0:00:27]} 37. Re4+
{[%clk 0:00:04.8]} 37... Kd5 {[%clk 0:00:26.6]} 38. Rg4 {[%clk 0:00:05.1]} 38...
Be5 {[%clk 0:00:22.9]} 39. Rg6 {[%clk 0:00:03.5]} 39... Bf6 {[%clk 0:00:17.6]}
40. Rg4 {[%clk 0:00:03.3]} 40... Rc4 {[%clk 0:00:17.7]} 41. Rxc4 {[%clk
0:00:02.5]} 41... Kxc4 {[%clk 0:00:18.6]} 42. h4 {[%clk 0:00:02.3]} 42... Bc3
{[%clk 0:00:18.9]} 43. Kd1 {[%clk 0:00:01.9]} 43... Bxd2 {[%clk 0:00:17.9]} 44.
Kxd2 {[%clk 0:00:02.8]} 44... Kxb4 {[%clk 0:00:18.5]} 45. f4 {[%clk 0:00:03.7]}
45... Kc5 {[%clk 0:00:17.4]} 46. Kc3 {[%clk 0:00:03.8]} 46... Kd5 {[%clk
0:00:17.6]} 47. Kb4 {[%clk 0:00:03.2]} 47... c6 {[%clk 0:00:14.2]} 48. g4 {[%clk
0:00:03.7]} 48... Ke4 {[%clk 0:00:13.8]} 49. f5 {[%clk 0:00:02.2]} 49... Ke5
{[%clk 0:00:12.5]} 50. Kc5 {[%clk 0:00:01.4]} 50... Kf4 {[%clk 0:00:10.7]} 51.
g5 {[%clk 0:00:01.6]} 51... Kxf5 {[%clk 0:00:10.1]} 52. gxh6 {[%clk 0:00:01.8]}
52... gxh6 {[%clk 0:00:11]} 53. h5 {[%clk 0:00:01.6]} 53... Kg5 {[%clk
0:00:11.1]} 54. Kxc6 {[%clk 0:00:02.2]} 54... b4 {[%clk 0:00:11.2]} 55. Kd6
{[%clk 0:00:03.1]} 55... b3 {[%clk 0:00:11.7]} 56. Ke7 {[%clk 0:00:04]} 56... b2
{[%clk 0:00:12.2]} 0-1

[Event "Early-Titled-Tuesday-Blitz-January-16-2024"]
[Site "Chess.com"]
[Date "2024.01.16"]
[Round "2"]
[White "shirovin"]
[Black "Zheenbekov86"]
[Result "0-1"]
[WhiteElo "1986"]
[BlackElo "2440"]
[TimeControl "180+1"]
[EndTime "8:19:22 PST"]
[Termination "Zheenbekov86 won on time"]

1. e4 {[%clk 0:03:00.9]} 1... c6 {[%clk 0:02:59.7]} 2. d4 {[%clk 0:02:59.7]}
2... d5 {[%clk 0:02:59.6]} 3. exd5 {[%clk 0:03:00.2]} 3... cxd5 {[%clk
0:02:59.3]} 4. Bd3 {[%clk 0:03:00.8]} 4... Nc6 {[%clk 0:02:59.3]} 5. c3 {[%clk
0:03:00.8]} 5... Nf6 {[%clk 0:02:59.2]} 6. Bf4 {[%clk 0:02:59.8]} 6... Bg4
{[%clk 0:02:45.7]} 7. Qb3 {[%clk 0:02:58.2]} 7... Qc8 {[%clk 0:02:45.4]} 8. Nd2
{[%clk 0:02:48]} 8... e6 {[%clk 0:02:45.1]} 9. Ngf3 {[%clk 0:02:46.3]} 9... Be7
{[%clk 0:02:44.5]} 10. O-O {[%clk 0:02:41.4]} 10... O-O {[%clk 0:02:44.2]} 11.
Rfe1 {[%clk 0:02:38.8]} 11... a6 {[%clk 0:02:42.3]} 12. a4 {[%clk 0:02:37.7]}
12... Bh5 {[%clk 0:02:36.5]} 13. Ne5 {[%clk 0:02:33.7]} 13... Bg6 {[%clk
0:02:34]} 14. Nxg6 {[%clk 0:02:30.8]} 14... hxg6 {[%clk 0:02:32.4]} 15. Nf3
{[%clk 0:02:30.3]} 15... Na5 {[%clk 0:02:26.6]} 16. Qc2 {[%clk 0:02:28.7]} 16...
Nc4 {[%clk 0:02:25.9]} 17. Ne5 {[%clk 0:02:26.4]} 17... b5 {[%clk 0:02:25.8]}
18. axb5 {[%clk 0:02:03.1]} 18... axb5 {[%clk 0:02:25.6]} 19. b3 {[%clk
0:02:01.1]} 19... Nd6 {[%clk 0:02:22.4]} 20. Nf3 {[%clk 0:01:43.7]} 20... Qb7
{[%clk 0:02:20.3]} 21. Qe2 {[%clk 0:01:36.5]} 21... Nfe4 {[%clk 0:02:14.9]} 22.
Bd2 {[%clk 0:01:22.2]} 22... Rfc8 {[%clk 0:02:09.3]} 23. Rxa8 {[%clk 0:01:19.5]}
23... Rxa8 {[%clk 0:02:09]} 24. Bb1 {[%clk 0:00:36]} 24... Qc7 {[%clk
0:01:47.2]} 25. Qd3 {[%clk 0:00:31]} 25... Ra1 {[%clk 0:01:44.6]} 26. Ne5 {[%clk
0:00:22.3]} 26... Bf6 {[%clk 0:00:43.2]} 27. f3 {[%clk 0:00:21]} 27... Nxd2
{[%clk 0:00:41.7]} 28. Qxd2 {[%clk 0:00:19.6]} 28... Bxe5 {[%clk 0:00:38.1]} 29.
dxe5 {[%clk 0:00:16.2]} 29... Qc5+ {[%clk 0:00:32]} 30. Kh1 {[%clk 0:00:13.2]}
30... Nb7 {[%clk 0:00:18.8]} 31. Qb2 {[%clk 0:00:12.8]} 31... Qa3 {[%clk
0:00:16.4]} 32. Qxa3 {[%clk 0:00:12.3]} 32... Rxa3 {[%clk 0:00:16.5]} 33. Bc2
{[%clk 0:00:11.5]} 33... Na5 {[%clk 0:00:14.5]} 34. Rb1 {[%clk 0:00:10.4]} 34...
Kf8 {[%clk 0:00:13.5]} 35. Kg1 {[%clk 0:00:08.7]} 35... Ke7 {[%clk 0:00:13.4]}
36. Kf1 {[%clk 0:00:09]} 36... Ra2 {[%clk 0:00:12]} 37. Rc1 {[%clk 0:00:06.3]}
37... g5 {[%clk 0:00:08.6]} 38. Ke1 {[%clk 0:00:05.6]} 38... f6 {[%clk
0:00:07.6]} 39. Kd1 {[%clk 0:00:05.9]} 39... fxe5 {[%clk 0:00:07]} 40. Rb1
{[%clk 0:00:05.9]} 40... Kd6 {[%clk 0:00:06.5]} 41. Bd3 {[%clk 0:00:04.4]} 41...
Kc6 {[%clk 0:00:03.8]} 42. c4 {[%clk 0:00:03.8]} 42... dxc4 {[%clk 0:00:03.4]}
43. bxc4 {[%clk 0:00:03.6]} 43... bxc4 {[%clk 0:00:03.6]} 44. Bg6 {[%clk
0:00:03.4]} 44... Rxg2 {[%clk 0:00:02.6]} 45. Bf7 {[%clk 0:00:02.8]} 45... Kc5
{[%clk 0:00:02.7]} 46. Bxe6 {[%clk 0:00:02]} 46... Rg1+ {[%clk 0:00:02.5]} 47.
Kc2 {[%clk 0:00:01.7]} 47... Rxb1 {[%clk 0:00:03]} 48. Kxb1 {[%clk 0:00:02.2]}
48... Kd4 {[%clk 0:00:03.5]} 49. Kc2 {[%clk 0:00:01.4]} 49... c3 {[%clk
0:00:04.1]} 0-1

[Event "Early-Titled-Tuesday-Blitz-January-16-2024"]
[Site "Chess.com"]
[Date "2024.01.16"]
[Round "2"]
[White "Lion-Al-Messi"]
[Black "igorkovalenko"]
[Result "0-1"]
[WhiteElo "2634"]
[BlackElo "3010"]
[TimeControl "180+1"]
[EndTime "8:19:23 PST"]
[Termination "igorkovalenko won on time"]

1. e4 {[%clk 0:03:00.9]} 1... d5 {[%clk 0:02:45.6]} 2. exd5 {[%clk 0:03:00]}
2... Qxd5 {[%clk 0:02:46.5]} 3. Nc3 {[%clk 0:03:00.2]} 3... Qa5 {[%clk
0:02:43.7]} 4. d4 {[%clk 0:02:59.9]} 4... Nf6 {[%clk 0:02:43.2]} 5. Nf3 {[%clk
0:03:00]} 5... c6 {[%clk 0:02:43.7]} 6. Bc4 {[%clk 0:02:58.2]} 6... Bf5 {[%clk
0:02:43.3]} 7. Bd2 {[%clk 0:02:58.5]} 7... Nbd7 {[%clk 0:02:43]} 8. Bb3 {[%clk
0:02:51.2]} 8... e6 {[%clk 0:02:42.9]} 9. Nh4 {[%clk 0:02:39.5]} 9... Bg4 {[%clk
0:02:42]} 10. f3 {[%clk 0:02:35.8]} 10... Qh5 {[%clk 0:02:41.5]} 11. g3 {[%clk
0:02:16.7]} 11... Bh3 {[%clk 0:02:41.5]} 12. Qe2 {[%clk 0:02:12.2]} 12... O-O-O
{[%clk 0:02:41.2]} 13. O-O-O {[%clk 0:02:10.7]} 13... Bd6 {[%clk 0:02:36.4]} 14.
Qf2 {[%clk 0:01:58.6]} 14... g5 {[%clk 0:02:33.7]} 15. Ng2 {[%clk 0:01:58.4]}
15... Bxg2 {[%clk 0:02:33.9]} 16. Qxg2 {[%clk 0:01:58.5]} 16... Qg6 {[%clk
0:02:32.2]} 17. Ne4 {[%clk 0:01:52]} 17... Nxe4 {[%clk 0:02:26.2]} 18. fxe4
{[%clk 0:01:52.9]} 18... Bc7 {[%clk 0:02:11.7]} 19. Rhf1 {[%clk 0:01:48.5]}
19... Rhe8 {[%clk 0:01:23.3]} 20. e5 {[%clk 0:01:42.6]} 20... c5 {[%clk
0:01:21.6]} 21. Be3 {[%clk 0:01:10.3]} 21... cxd4 {[%clk 0:01:18.9]} 22. Bxd4
{[%clk 0:01:11.2]} 22... Nxe5 {[%clk 0:01:09.9]} 23. Bxa7 {[%clk 0:01:06.4]}
23... g4 {[%clk 0:01:03.9]} 24. Be3 {[%clk 0:00:58.5]} 24... Nf3 {[%clk
0:01:03]} 25. Qe2 {[%clk 0:00:57.6]} 25... Qe4 {[%clk 0:00:58]} 26. Rd3 {[%clk
0:00:39.1]} 26... Rxd3 {[%clk 0:00:56.3]} 27. cxd3 {[%clk 0:00:37.2]} 27... Qe5
{[%clk 0:00:52.8]} 28. Qf2 {[%clk 0:00:27.9]} 28... Rd8 {[%clk 0:00:49.6]} 29.
Bf4 {[%clk 0:00:19.9]} 29... Qd4 {[%clk 0:00:36]} 30. Qc2 {[%clk 0:00:19.3]}
30... Rd7 {[%clk 0:00:30.7]} 31. Kb1 {[%clk 0:00:18.5]} 31... Qxd3 {[%clk
0:00:27.8]} 32. Qxd3 {[%clk 0:00:18.9]} 32... Rxd3 {[%clk 0:00:27.5]} 33. Rc1
{[%clk 0:00:19.5]} 33... Nd2+ {[%clk 0:00:20.3]} 34. Kc2 {[%clk 0:00:19.8]}
34... Nxb3 {[%clk 0:00:20.6]} 35. axb3 {[%clk 0:00:15.2]} 35... Rd7 {[%clk
0:00:20.7]} 36. Rf1 {[%clk 0:00:14.9]} 36... Kd8 {[%clk 0:00:18.9]} 37. Bg5+
{[%clk 0:00:15]} 37... Ke8 {[%clk 0:00:19.2]} 38. Rf6 {[%clk 0:00:12.7]} 38...
Rd5 {[%clk 0:00:19.1]} 39. Be3 {[%clk 0:00:12]} 39... h5 {[%clk 0:00:19.1]} 40.
Rh6 {[%clk 0:00:12]} 40... Rf5 {[%clk 0:00:19.5]} 41. Rh8+ {[%clk 0:00:11.6]}
41... Kd7 {[%clk 0:00:20]} 42. Rh7 {[%clk 0:00:11.8]} 42... Bd6 {[%clk
0:00:20.2]} 43. Bd4 {[%clk 0:00:11.6]} 43... b5 {[%clk 0:00:20.6]} 44. Kd3
{[%clk 0:00:11.7]} 44... Kc6 {[%clk 0:00:21.2]} 45. Rh8 {[%clk 0:00:10.9]} 45...
Rf3+ {[%clk 0:00:21.2]} 46. Ke2 {[%clk 0:00:10]} 46... Rxb3 {[%clk 0:00:21.1]}
47. Rxh5 {[%clk 0:00:10.5]} 47... f5 {[%clk 0:00:20.2]} 48. Rh8 {[%clk
0:00:07.1]} 48... Kd5 {[%clk 0:00:20.1]} 49. Bf6 {[%clk 0:00:07.3]} 49... e5
{[%clk 0:00:20.4]} 50. Rd8 {[%clk 0:00:07.3]} 50... Rxb2+ {[%clk 0:00:20.9]} 51.
Kd3 {[%clk 0:00:07.4]} 51... Ke6 {[%clk 0:00:21.4]} 52. Bg7 {[%clk 0:00:06.5]}
52... Rxh2 {[%clk 0:00:21.2]} 53. Re8+ {[%clk 0:00:06]} 53... Kd5 {[%clk
0:00:21.4]} 54. Rd8 {[%clk 0:00:06.5]} 54... Ke6 {[%clk 0:00:21.8]} 55. Re8+
{[%clk 0:00:06.6]} 55... Kd7 {[%clk 0:00:22.4]} 56. Ra8 {[%clk 0:00:05.4]} 56...
Rg2 {[%clk 0:00:22.3]} 57. Ra7+ {[%clk 0:00:05.6]} 57... Kc6 {[%clk 0:00:20.7]}
58. Ra6+ {[%clk 0:00:05.8]} 58... Kd5 {[%clk 0:00:21.3]} 59. Rb6 {[%clk
0:00:02.3]} 59... e4+ {[%clk 0:00:19.4]} 60. Kc3 {[%clk 0:00:02]} 60... Rxg3+
{[%clk 0:00:19.5]} 61. Kc2 {[%clk 0:00:01.9]} 61... Rg2+ {[%clk 0:00:20.1]} 62.
Kb3 {[%clk 0:00:01.9]} 62... b4 {[%clk 0:00:20]} 0-1

[Event "Early-Titled-Tuesday-Blitz-January-16-2024"]
[Site "Chess.com"]
[Date "2024.01.16"]
[Round "2"]
[White "guillembaches"]
[Black "GrotBchess"]
[Result "1-0"]
[WhiteElo "2525"]
[BlackElo "2278"]
[TimeControl "180+1"]
[EndTime "8:19:23 PST"]
[Termination "guillembaches won by checkmate"]

1. d4 {[%clk 0:03:00.9]} 1... Nf6 {[%clk 0:02:59.6]} 2. Nf3 {[%clk 0:03:01.5]}
2... e6 {[%clk 0:02:59.5]} 3. Bg5 {[%clk 0:03:02]} 3... d5 {[%clk 0:02:59.1]} 4.
Nbd2 {[%clk 0:03:01.8]} 4... Be7 {[%clk 0:02:59.3]} 5. e3 {[%clk 0:03:02.2]}
5... O-O {[%clk 0:02:59.7]} 6. Bd3 {[%clk 0:03:02.6]} 6... h6 {[%clk 0:02:59.8]}
7. Bh4 {[%clk 0:03:02.3]} 7... c5 {[%clk 0:02:59.9]} 8. c3 {[%clk 0:03:02.7]}
8... Nc6 {[%clk 0:02:59.3]} 9. Ne5 {[%clk 0:03:02.3]} 9... Nxe5 {[%clk
0:02:56.5]} 10. dxe5 {[%clk 0:03:03.2]} 10... Nd7 {[%clk 0:02:56.7]} 11. Bxe7
{[%clk 0:03:03.8]} 11... Qxe7 {[%clk 0:02:57.6]} 12. f4 {[%clk 0:03:04.3]} 12...
f6 {[%clk 0:02:52.9]} 13. exf6 {[%clk 0:03:04.1]} 13... Nxf6 {[%clk 0:02:52.9]}
14. Nf3 {[%clk 0:03:00]} 14... Nd7 {[%clk 0:02:48.7]} 15. Bb5 {[%clk 0:02:55.8]}
15... Nf6 {[%clk 0:02:44.2]} 16. Ne5 {[%clk 0:02:50.3]} 16... a6 {[%clk
0:02:42]} 17. Bd3 {[%clk 0:02:41.7]} 17... Qe8 {[%clk 0:02:33.2]} 18. O-O {[%clk
0:02:35.5]} 18... Nd7 {[%clk 0:02:30.2]} 19. Bg6 {[%clk 0:02:29.9]} 19... Qe7
{[%clk 0:02:24.1]} 20. Nf3 {[%clk 0:02:25.7]} 20... Rf6 {[%clk 0:02:18.9]} 21.
Bc2 {[%clk 0:02:20]} 21... b6 {[%clk 0:02:11.2]} 22. Qd3 {[%clk 0:02:17.1]}
22... Nf8 {[%clk 0:02:11]} 23. Ne5 {[%clk 0:02:05.8]} 23... a5 {[%clk
0:02:10.6]} 24. Rf3 {[%clk 0:02:01.8]} 24... Ba6 {[%clk 0:02:09.5]} 25. Qd2
{[%clk 0:02:01.5]} 25... Nd7 {[%clk 0:02:05.9]} 26. Ng4 {[%clk 0:01:54.9]} 26...
Rff8 {[%clk 0:02:01.6]} 27. Rg3 {[%clk 0:01:53.2]} 27... Kh8 {[%clk 0:01:56.1]}
28. Rh3 {[%clk 0:01:49.1]} 28... Kg8 {[%clk 0:01:50.6]} 29. Re1 {[%clk 0:01:39]}
29... Rad8 {[%clk 0:01:47.4]} 30. Qf2 {[%clk 0:01:35.2]} 30... e5 {[%clk
0:01:35.2]} 31. Qg3 {[%clk 0:01:34.6]} 31... Rf6 {[%clk 0:00:52.5]} 32. Nxf6+
{[%clk 0:01:20.3]} 32... Qxf6 {[%clk 0:00:53.4]} 33. Qg6 {[%clk 0:01:18.4]}
33... Qxg6 {[%clk 0:00:49.8]} 34. Bxg6 {[%clk 0:01:19.3]} 34... e4 {[%clk
0:00:39.7]} 35. Rd1 {[%clk 0:01:19.2]} 35... Nf6 {[%clk 0:00:38.5]} 36. Rd2
{[%clk 0:01:08.8]} 36... Kf8 {[%clk 0:00:33.3]} 37. Rg3 {[%clk 0:01:06.6]} 37...
a4 {[%clk 0:00:30.3]} 38. a3 {[%clk 0:01:05.9]} 38... Bc4 {[%clk 0:00:29.7]} 39.
Bf5 {[%clk 0:01:03.5]} 39... Kf7 {[%clk 0:00:26.3]} 40. Bg6+ {[%clk 0:01:00.8]}
40... Kf8 {[%clk 0:00:25.8]} 41. Kf2 {[%clk 0:00:53]} 41... b5 {[%clk
0:00:24.2]} 42. Bf5 {[%clk 0:00:49.7]} 42... Kf7 {[%clk 0:00:21.7]} 43. Bg6+
{[%clk 0:00:49.3]} 43... Kf8 {[%clk 0:00:21.7]} 44. Rh3 {[%clk 0:00:45.2]} 44...
Rb8 {[%clk 0:00:20.4]} 45. Rh4 {[%clk 0:00:39]} 45... b4 {[%clk 0:00:20.1]} 46.
axb4 {[%clk 0:00:39]} 46... cxb4 {[%clk 0:00:19.7]} 47. cxb4 {[%clk 0:00:39.4]}
47... Rxb4 {[%clk 0:00:19.7]} 48. g4 {[%clk 0:00:39.8]} 48... Rb3 {[%clk
0:00:19.6]} 49. g5 {[%clk 0:00:38.2]} 49... hxg5 {[%clk 0:00:19.7]} 50. fxg5
{[%clk 0:00:37.7]} 50... Nd7 {[%clk 0:00:20.2]} 51. Bxe4 {[%clk 0:00:33.1]}
51... dxe4 {[%clk 0:00:15.7]} 52. Rxd7 {[%clk 0:00:32.7]} 52... Rxb2+ {[%clk
0:00:16.3]} 53. Kg3 {[%clk 0:00:32.4]} 53... Re2 {[%clk 0:00:15.6]} 54. Rh8+
{[%clk 0:00:32.2]} 54... Bg8 {[%clk 0:00:15.6]} 55. Rd8+ {[%clk 0:00:32.6]}
55... Kf7 {[%clk 0:00:15.7]} 56. Rhxg8 {[%clk 0:00:32.7]} 56... Rxe3+ {[%clk
0:00:15.9]} 57. Kf4 {[%clk 0:00:33]} 57... Rb3 {[%clk 0:00:15.1]} 58. Rgf8+
{[%clk 0:00:33.2]} 58... Kg6 {[%clk 0:00:14.4]} 59. Rfe8 {[%clk 0:00:32.9]}
59... a3 {[%clk 0:00:13.6]} 60. Ra8 {[%clk 0:00:32.1]} 60... Rf3+ {[%clk
0:00:12.3]} 61. Kxe4 {[%clk 0:00:31.4]} 61... Rb3 {[%clk 0:00:12.4]} 62. Kf4
{[%clk 0:00:29.9]} 62... Rb4+ {[%clk 0:00:12]} 63. Re4 {[%clk 0:00:29.6]} 63...
Rb3 {[%clk 0:00:11.8]} 64. Ra6+ {[%clk 0:00:29.5]} 64... Kh5 {[%clk 0:00:11.3]}
65. g6 {[%clk 0:00:29.5]} 65... Kh4 {[%clk 0:00:09.3]} 66. Kf5+ {[%clk
0:00:29.4]} 66... Kh3 {[%clk 0:00:09.6]} 67. Re7 {[%clk 0:00:28.9]} 67... Kxh2
{[%clk 0:00:09.7]} 68. Rxg7 {[%clk 0:00:29.1]} 68... Kg3 {[%clk 0:00:10]} 69.
Rga7 {[%clk 0:00:28.9]} 69... Kh4 {[%clk 0:00:10]} 70. Ra4+ {[%clk 0:00:28.7]}
70... Kh5 {[%clk 0:00:08.6]} 71. Rh7# {[%clk 0:00:27]} 1-0

[Event "Early-Titled-Tuesday-Blitz-January-16-2024"]
[Site "Chess.com"]
[Date "2024.01.16"]
[Round "2"]
[White "mbojan"]
[Black "whitemirrorninja"]
[Result "1-0"]
[WhiteElo "2893"]
[BlackElo "2495"]
[TimeControl "180+1"]
[EndTime "8:19:26 PST"]
[Termination "mbojan won by checkmate"]

1. a3 {[%clk 0:02:49.1]} 1... g6 {[%clk 0:02:57.8]} 2. d4 {[%clk 0:02:49.1]}
2... d5 {[%clk 0:02:56.8]} 3. Nf3 {[%clk 0:02:47.2]} 3... Bg7 {[%clk 0:02:56.9]}
4. c4 {[%clk 0:02:47.6]} 4... dxc4 {[%clk 0:02:54.8]} 5. e3 {[%clk 0:02:43.8]}
5... c5 {[%clk 0:02:54.2]} 6. Bxc4 {[%clk 0:02:43.1]} 6... Nc6 {[%clk
0:02:48.1]} 7. d5 {[%clk 0:02:38.3]} 7... Ne5 {[%clk 0:02:48.4]} 8. Nxe5 {[%clk
0:02:38.6]} 8... Bxe5 {[%clk 0:02:48.9]} 9. O-O {[%clk 0:02:37]} 9... Bg7 {[%clk
0:02:38.3]} 10. Nc3 {[%clk 0:02:36.5]} 10... Nf6 {[%clk 0:02:38.2]} 11. e4
{[%clk 0:02:36.8]} 11... O-O {[%clk 0:02:27.2]} 12. h3 {[%clk 0:02:29.1]} 12...
a6 {[%clk 0:02:27.6]} 13. a4 {[%clk 0:02:29]} 13... Qa5 {[%clk 0:02:22]} 14. Qe2
{[%clk 0:02:26.6]} 14... b5 {[%clk 0:02:17.1]} 15. Bd3 {[%clk 0:02:14.7]} 15...
c4 {[%clk 0:02:11.9]} 16. Bc2 {[%clk 0:02:13.6]} 16... b4 {[%clk 0:02:09.3]} 17.
Nd1 {[%clk 0:02:13.9]} 17... Qc7 {[%clk 0:02:01.1]} 18. Ne3 {[%clk 0:02:09.9]}
18... a5 {[%clk 0:01:56.3]} 19. Nxc4 {[%clk 0:01:58.8]} 19... Ba6 {[%clk
0:01:56.3]} 20. Bd3 {[%clk 0:01:59.4]} 20... Rfc8 {[%clk 0:01:48.8]} 21. Ne3
{[%clk 0:01:24.1]} 21... Bxd3 {[%clk 0:01:42.9]} 22. Qxd3 {[%clk 0:01:25]} 22...
Nd7 {[%clk 0:01:19.1]} 23. d6 {[%clk 0:01:20.4]} 23... Qxd6 {[%clk 0:01:08.9]}
24. Qxd6 {[%clk 0:01:20.4]} 24... exd6 {[%clk 0:01:09.8]} 25. Nd5 {[%clk
0:01:20.6]} 25... Rc2 {[%clk 0:01:01]} 26. Rb1 {[%clk 0:01:21.1]} 26... b3
{[%clk 0:00:56.4]} 27. Ne3 {[%clk 0:01:16.3]} 27... Nc5 {[%clk 0:00:47.1]} 28.
Nxc2 {[%clk 0:00:59.4]} 28... bxc2 {[%clk 0:00:48]} 29. Ra1 {[%clk 0:01:00]}
29... Nb3 {[%clk 0:00:46.1]} 30. Ra2 {[%clk 0:01:00.5]} 30... Rc8 {[%clk
0:00:39.8]} 31. Re1 {[%clk 0:01:00.5]} 31... Rc4 {[%clk 0:00:20.6]} 32. f3
{[%clk 0:00:58.9]} 32... Bd4+ {[%clk 0:00:20.3]} 33. Kf1 {[%clk 0:00:58.7]}
33... Nxc1 {[%clk 0:00:20.4]} 34. Rxc1 {[%clk 0:00:59.6]} 34... Be3 {[%clk
0:00:20.3]} 35. Raa1 {[%clk 0:01:00.2]} 35... Bxc1 {[%clk 0:00:17.4]} 36. Rxc1
{[%clk 0:01:01.1]} 36... g5 {[%clk 0:00:13.9]} 37. Ke2 {[%clk 0:00:57.4]} 37...
Kf8 {[%clk 0:00:13.6]} 38. Kd3 {[%clk 0:00:55.5]} 38... Rxa4 {[%clk 0:00:14.2]}
39. Rxc2 {[%clk 0:00:56.2]} 39... Ke7 {[%clk 0:00:13.4]} 40. b3 {[%clk
0:00:52.5]} 40... Ra1 {[%clk 0:00:13.4]} 41. Kc4 {[%clk 0:00:52]} 41... Ke6
{[%clk 0:00:11.3]} 42. Kb5 {[%clk 0:00:52]} 42... Rb1 {[%clk 0:00:10.5]} 43. Rc3
{[%clk 0:00:52.1]} 43... Rb2 {[%clk 0:00:10.6]} 44. g3 {[%clk 0:00:52]} 44...
Rg2 {[%clk 0:00:09.7]} 45. g4 {[%clk 0:00:45.3]} 45... Ra2 {[%clk 0:00:10.2]}
46. Rd3 {[%clk 0:00:43.1]} 46... f6 {[%clk 0:00:09]} 47. Rc3 {[%clk 0:00:40.8]}
47... h6 {[%clk 0:00:08.8]} 48. Rd3 {[%clk 0:00:38.3]} 48... Ra3 {[%clk
0:00:07.4]} 49. Kc4 {[%clk 0:00:33.5]} 49... Ra1 {[%clk 0:00:07.3]} 50. Kd4
{[%clk 0:00:30.8]} 50... a4 {[%clk 0:00:06.6]} 51. b4 {[%clk 0:00:28.9]} 51...
a3 {[%clk 0:00:03.4]} 52. Rd2 {[%clk 0:00:10.5]} 52... a2 {[%clk 0:00:02.8]} 53.
Kd3 {[%clk 0:00:11.2]} 53... Rd1 {[%clk 0:00:02.5]} 54. Rxd1 {[%clk 0:00:11.4]}
54... Ke5 {[%clk 0:00:03.2]} 55. Ra1 {[%clk 0:00:11.3]} 55... Kf4 {[%clk
0:00:04.1]} 56. b5 {[%clk 0:00:11.7]} 56... Kxf3 {[%clk 0:00:04.1]} 57. b6
{[%clk 0:00:12.4]} 57... h5 {[%clk 0:00:04.9]} 58. b7 {[%clk 0:00:12.5]} 58...
hxg4 {[%clk 0:00:05.8]} 59. hxg4 {[%clk 0:00:13.2]} 59... Kxg4 {[%clk 0:00:06]}
60. b8=Q {[%clk 0:00:13.8]} 60... f5 {[%clk 0:00:06.9]} 61. Qc8 {[%clk
0:00:14.1]} 61... d5 {[%clk 0:00:06.8]} 62. Qxf5+ {[%clk 0:00:14.2]} 62... Kg3
{[%clk 0:00:06.2]} 63. Rg1+ {[%clk 0:00:14.4]} 63... Kh2 {[%clk 0:00:06.1]} 64.
Qf2+ {[%clk 0:00:14.7]} 64... Kh3 {[%clk 0:00:05.6]} 65. Qg3# {[%clk 0:00:15.6]}
1-0